Workbook

Sheet Образец
A1: Оценка валовой прибыли
A2: Период: Январь 2016 г.
A4: Магазин | B4: Количество | C4: Сумма продаж (грн.)
A5: Склад
A6: Номенклатура
A7: Аудио-видео техника | B7: =B8+B11+B67+B95 -> 175 | C7: =C8+C11+C67+C95 -> 113618
A8: DVD-плеер | B8: 1 | C8: 670
A9: LG | B9: 1 | C9: 670
A10: Плеєр LG BP730 | B10: 1 | C10: 670
A11: Разное | B11: =B12+B15+B22+B27+B43+B49+B57 -> 158 | C11: =C12+C15+C22+C27+C43+C49+C57 -> 12353
A12: CAM - модуль | B12: 3 | C12: 2520
A13: Neotion | B13: 3 | C13: 2520
A14: CAM - модуль T2 NEOTION | B14: 3 | C14: 2520
A15: Аккумулятор | B15: 24 | C15: =C16+C19 -> 2154
A16: Duracell | B16: 16 | C16: =C17+C18 -> 944
A17: Акумулятор DURACELL HR6BLN02*10 (AA) 1300 mAh | B17: 10 | C17: 440
A18: Акумулятор DURACELL предзаряженные HR6BLN02*10 (AA) 1950 mAh | B18: 6 | C18: 504
A19: Sony | B19: 14 | C19: 1210
A20: Аккумулятор SONY NHAAB2E R06 2500 1x2 шт. | B20: 6 | C20: 570
A21: Аккумулятор NHAAAB2E R03 1000 mAh 1x2 шт. | B21: 8 | C21: 640
A22: Антенна | B22: 3 | C22: 754
A23: Kvant-Efir | B23: 2 | C23: 460
A24: Антенна комнатная ARU-01 активная | B24: 2 | C24: 460
A25: X-Digital | B25: 1 | C25: 294
A26: Антенна комнатная DIN 330 | B26: 1 | C26: 294
A27: Батарейка | B27: =B28+B37+B40 -> 108 | C27: =C28+C37+C40 -> 1800
A28: Duracell | B28: 64 | C28: 1352
A29: Батарейка D/LR20/MN1300 KPN 02*10 | B29: 4 | C29: 220
A30: Батарейка LR03 MN2400 (коробка) 10х4шт. | B30: 14 | C30: 168
A31: Батарейка LR03 MN2400 1x2 шт. | B31: 8 | C31: 144
A32: Батарейка LR03 MN2400 1x18 шт. | B32: 18 | C32: 252
A33: Батарейка LR06 MN1500 KPD 02*20 Turbo 1x2 шт. | B33: 8 | C33: 176
A34: Батарейка DURACELL LR06 MN1500 KPD 08*20 Turbo 1x8 шт. | B34: 8 | C34: 192
A35: Батарейка DURACELL MN21 BLN 01x10 | B35: 2 | C35: 120
A36: Батарейка DURACELL С/ LR14/ MN1400 KPN 02*10 | B36: 2 | C36: 80
A37: Sony | B37: 20 | C37: 256
A38: Батарейка LR 03 Stamina Platinum 1x4 шт. | B38: 8 | C38: 136
A39: Батарейка LR 6 Stamina Plus 1х12 шт. | B39: 12 | C39: 120
A40: X-Digital | B40: 24 | C40: 192
A41: Батарейка X-DIGITAL Longlife R 3 коробка 1X4 шт. | B41: 12 | C41: 96
A42: Батарейка X-DIGITAL LR 06 | B42: 12 | C42: 96
A43: Зарядное устройство | B43: 4 | C43: 1780
A44: Sony | B44: 2 | C44: 920
A45: Зарядное устройство SONY COMPACT CHARGER + 2XAA2500 MAH | B45: 1 | C45: 270
A46: Зарядное устройство Super Quick Charger with LCD+4xAA 2700mAh | B46: 1 | C46: 650
A47: UFO | B47: 2 | C47: 860
A48: Зарядное устройство USB PB-miniAPP11-2 5200mAh | B48: 2 | C48: 860
A49: Кабель, шнур, сетевой фильтр | B49: 10 | C49: 950
A50: Bandridge | B50: 6 | C50: 610
A51: Кабель BVL8802 Antenna Cable 2m BLUE | B51: 2 | C51: 220
A52: Кабель BANDRIDGE ValueLine VAL3402 Audio | B52: 2 | C52: 120
A53: Кабель BANDRIDGE ValueLine VCL7105 Net RJ45 5m | B53: 2 | C53: 270
A54: Maxxtro | B54: 4 | C54: 340
A55: Сетевой фильтр PWS06K 10F 3м. 6р черный | B55: 2 | C55: 240
A56: Фильтр сетевой Maxxtro 5 розеток, серый, 1,8м. 10А | B56: 2 | C56: 100
A57: Настенные крепления | B57: 6 | C57: 2395
A58: Brateck | B58: 1 | C58: 260
A59: Кріплення до LCD 15-27 " LP10-22F | B59: 1 | C59: 260
A60: ITECH | B60: 3 | C60: 880
A61: Крепления LCD-303B | B61: 1 | C61: 200
A62: Крепления LCD-328B | B62: 1 | C62: 300
A63: Крепления PLB-44 | B63: 1 | C63: 380
A64: X-Digital | B64: 2 | C64: =C65+C66 -> 1255
A65: Крiплення настiнне X-DIGITAL 13-32" LCD402 чорний | B65: 1 | C65: 680
A66: Крiплення настiнне X-DIGITAL STEEL 22-42" SF305 Black | B66: 1 | C66: 575
A67: Телевизор | B67: =B69+B72+B75+B78+B81+B88+B91 -> 11 | C67: =C69+C72+C75+C78+C81+C88+C91 -> 96318
A68: Телевизр LCD
A69: 19" | B69: 1 | C69: 3999
A70: Sumsung | B70: 1 | C70: 3999
A71: LED TV UE19H4000AKXUA | B71: 1 | C71: 3999
A72: 22" | B72: 1 | C72: 3099
A73: Honda | B73: 1 | C73: 3099
A74: LED TV HD 225 | B74: 1 | C74: 3099
A75: 24" | B75: 1 | C75: 3799
A76: Ergo | B76: 1 | C76: 3799
A77: LED TV LE24D6 | B77: 1 | C77: 3799
A78: 28" | B78: 1 | C78: 4329
A79: Ergo | B79: 1 | C79: 4329
A80: LED TV LE28D4 | B80: 1 | C80: 4329
A81: 32" | B81: 4 | C81: =C82+C85 -> 32296
A82: LG | B82: 2 | C82: 14498
A83: LED TV 32LB563U | B83: 1 | C83: 6999
A84: LED TV 32LF560U | B84: 1 | C84: 7499
A85: Samsung | B85: 2 | C85: 17798
A86: LED TV UE32FH4003WXUA | B86: 1 | C86: 6799
A87: LED TV UE32J5530AUXUA | B87: 1 | C87: 10999
A88: 40" | B88: 1 | C88: 12499
A89: Samsung | B89: 1 | C89: 12499
A90: LED TV UE40J5100AUXUA | B90: 1 | C90: 12499
A91: 42" | B91: 2 | C91: =C92+C93 -> 36297
A92: LG | B92: 2 | C92: =C93+C94 -> 25298
A93: LED TV 42LB570V | B93: 1 | C93: 10999
A94: LED TV 42LF580V | B94: 1 | C94: 14299
A95: Цифровой эфирный приемник | B95: 5 | C95: 4277
A96: Romsat | B96: 1 | C96: 899
A97: ЦЭП T2050 | B97: 1 | C97: 899
A98: Trimax | B98: 2 | C98: 1600
A99: Цифр. ефірн.приймач DVB-T2 Trimax TR-2012HD | B99: 2 | C99: 1600
A100: Strong | B100: 2 | C100: 1778
A101: ЦЭП DVB-T2 Strong SRT-8501 | B101: 2 | C101: 1778

Sheet Сводная
A3: Аудио-видео техника | B3: Количество | C3: Сумма по полю Сумма
A4: DVD-плеер | B4: 1 | C4: 670
A5: (пусто) | B5: 1 | C5: 670
A6: (пусто) | B6: 1 | C6: 670
A7: LG | B7: 1 | C7: 670
A8: Плеєр LG BP730 | B8: 1 | C8: 670
A9: Разное | B9: 164 | C9: 12353
A10: CAM - модуль | B10: 3 | C10: 2520
A11: (пусто) | B11: 3 | C11: 2520
A12: Neotion | B12: 3 | C12: 2520
A13: CAM - модуль T2 NEOTION | B13: 3 | C13: 2520
A14: Аккумулятор | B14: 30 | C14: 2154
A15: (пусто) | B15: 30 | C15: 2154
A16: Duracell | B16: 16 | C16: 944
A17: Акумулятор DURACELL HR6BLN02*10 (AA) 1300 mAh | B17: 10 | C17: 440
A18: Акумулятор DURACELL предзаряженные HR6BLN02*10 (AA) 1950 mAh | B18: 6 | C18: 504
A19: Sony | B19: 14 | C19: 1210
A20: Аккумулятор NHAAAB2E R03 1000 mAh 1x2 шт. | B20: 8 | C20: 640
A21: Аккумулятор SONY NHAAB2E R06 2500 1x2 шт. | B21: 6 | C21: 570
A22: Антенна | B22: 3 | C22: 754
A23: (пусто) | B23: 3 | C23: 754
A24: Kvant-Efir | B24: 2 | C24: 460
A25: Антенна комнатная ARU-01 активная | B25: 2 | C25: 460
A26: X-Digital | B26: 1 | C26: 294
A27: Антенна комнатная DIN 330 | B27: 1 | C27: 294
A28: Батарейка | B28: 108 | C28: 1800
A29: (пусто) | B29: 108 | C29: 1800
A30: Duracell | B30: 64 | C30: 1352
A31: Батарейка D/LR20/MN1300 KPN 02*10 | B31: 4 | C31: 220
A32: Батарейка LR03 MN2400 (коробка) 10х4шт. | B32: 14 | C32: 168
A33: Батарейка LR03 MN2400 1x18 шт. | B33: 18 | C33: 252
A34: Батарейка LR03 MN2400 1x2 шт. | B34: 8 | C34: 144
A35: Батарейка LR06 MN1500 KPD 02*20 Turbo 1x2 шт. | B35: 8 | C35: 176
A36: Батарейка DURACELL LR06 MN1500 KPD 08*20 Turbo 1x8 шт. | B36: 8 | C36: 192
A37: Батарейка DURACELL MN21 BLN 01x10 | B37: 2 | C37: 120
A38: Батарейка DURACELL С/ LR14/ MN1400 KPN 02*10 | B38: 2 | C38: 80
A39: Sony | B39: 20 | C39: 256
A40: Батарейка LR 03 Stamina Platinum 1x4 шт. | B40: 8 | C40: 136
A41: Батарейка LR 6 Stamina Plus 1х12 шт. | B41: 12 | C41: 120
A42: X-Digital | B42: 24 | C42: 192
A43: Батарейка X-DIGITAL Longlife R 3 коробка 1X4 шт. | B43: 12 | C43: 96
A44: Батарейка X-DIGITAL LR 06 | B44: 12 | C44: 96
A45: Зарядное устройство | B45: 4 | C45: 1780
A46: (пусто) | B46: 4 | C46: 1780
A47: Sony | B47: 2 | C47: 920
A48: Зарядное устройство Super Quick Charger with LCD+4xAA 2700mAh | B48: 1 | C48: 650
A49: Зарядное устройство SONY COMPACT CHARGER + 2XAA2500 MAH | B49: 1 | C49: 270
A50: UFO | B50: 2 | C50: 860
A51: Зарядное устройство USB PB-miniAPP11-2 5200mAh | B51: 2 | C51: 860
A52: Кабель, шнур, сетевой фильтр | B52: 10 | C52: 950
A53: (пусто) | B53: 10 | C53: 950
A54: Bandridge | B54: 6 | C54: 610
A55: Кабель BVL8802 Antenna Cable 2m BLUE | B55: 2 | C55: 220
A56: Кабель BANDRIDGE ValueLine VAL3402 Audio | B56: 2 | C56: 120
A57: Кабель BANDRIDGE ValueLine VCL7105 Net RJ45 5m | B57: 2 | C57: 270
A58: Maxxtro | B58: 4 | C58: 340
A59: Сетевой фильтр PWS06K 10F 3м. 6р черный | B59: 2 | C59: 240
A60: Фильтр сетевой Maxxtro 5 розеток, серый, 1,8м. 10А | B60: 2 | C60: 100
A61: Настенные крепления | B61: 6 | C61: 2395
A62: (пусто) | B62: 6 | C62: 2395
A63: Brateck | B63: 1 | C63: 260
A64: Кріплення до LCD 15-27 " LP10-22F | B64: 1 | C64: 260
A65: ITECH | B65: 3 | C65: 880
A66: Крепления LCD-303B | B66: 1 | C66: 200
A67: Крепления LCD-328B | B67: 1 | C67: 300
A68: Крепления PLB-44 | B68: 1 | C68: 380
A69: X-Digital | B69: 2 | C69: 1255
A70: Крiплення настiнне X-DIGITAL 13-32" LCD402 чорний | B70: 1 | C70: 680
A71: Крiплення настiнне X-DIGITAL STEEL 22-42" SF305 Black | B71: 1 | C71: 575
A72: Телевизор | B72: 11 | C72: 85319
A73: Телевизр LCD | B73: 11 | C73: 85319
A74: 19" | B74: 1 | C74: 3999
A75: Sumsung | B75: 1 | C75: 3999
A76: LED TV UE19H4000AKXUA | B76: 1 | C76: 3999
A77: 22" | B77: 1 | C77: 3099
A78: Honda | B78: 1 | C78: 3099
A79: LED TV HD 225 | B79: 1 | C79: 3099
A80: 24" | B80: 1 | C80: 3799
A81: Ergo | B81: 1 | C81: 3799
A82: LED TV LE24D6 | B82: 1 | C82: 3799
A83: 28" | B83: 1 | C83: 4329
A84: Ergo | B84: 1 | C84: 4329
A85: LED TV LE28D4 | B85: 1 | C85: 4329
A86: 32" | B86: 4 | C86: 32296
A87: LG | B87: 2 | C87: 14498
A88: LED TV 32LB563U | B88: 1 | C88: 6999
A89: LED TV 32LF560U | B89: 1 | C89: 7499
A90: Samsung | B90: 2 | C90: 17798
A91: LED TV UE32FH4003WXUA | B91: 1 | C91: 6799
A92: LED TV UE32J5530AUXUA | B92: 1 | C92: 10999
A93: 40" | B93: 1 | C93: 12499
A94: Samsung | B94: 1 | C94: 12499
A95: LED TV UE40J5100AUXUA | B95: 1 | C95: 12499
A96: 42" | B96: 2 | C96: 25298
A97: LG | B97: 2 | C97: 25298
A98: LED TV 42LB570V | B98: 1 | C98: 10999
A99: LED TV 42LF580V | B99: 1 | C99: 14299
A100: Цифровой эфирный приемник | B100: 5 | C100: 4277
A101: (пусто) | B101: 5 | C101: 4277
A102: (пусто) | B102: 5 | C102: 4277
A103: Romsat | B103: 1 | C103: 899
A104: ЦЭП T2050 | B104: 1 | C104: 899
A105: Strong | B105: 2 | C105: 1778
A106: ЦЭП DVB-T2 Strong SRT-8501 | B106: 2 | C106: 1778
A107: Trimax | B107: 2 | C107: 1600
A108: Цифр. ефірн.приймач DVB-T2 Trimax TR-2012HD | B108: 2 | C108: 1600
A109: Общий итог | B109: 181 | C109: 102619

Sheet Данные
A1: Группа | B1: Подгруппа | C1: Дюйм | D1: Бренд | E1: Товар | F1: Цена | G1: Кол-во | H1: Сумма
A2: DVD-плеер | D2: LG | E2: Плеєр LG BP730 | F2: 670 | G2: 1 | H2: =G2*F2 -> 670
A3: Разное | B3: CAM - модуль | D3: Neotion | E3: CAM - модуль T2 NEOTION | F3: 840 | G3: 3 | H3: 2520
A4: Разное | B4: Аккумулятор | D4: Duracell | E4: Акумулятор DURACELL HR6BLN02*10 (AA) 1300 mAh | F4: 44 | G4: 10 | H4: 440
A5: Разное | B5: Аккумулятор | D5: Duracell | E5: Акумулятор DURACELL предзаряженные HR6BLN02*10 (AA) 1950 mAh | F5: 84 | G5: 6 | H5: 504
A6: Разное | B6: Аккумулятор | D6: Sony | E6: Аккумулятор SONY NHAAB2E R06 2500 1x2 шт. | F6: 95 | G6: 6 | H6: 570
A7: Разное | B7: Аккумулятор | D7: Sony | E7: Аккумулятор NHAAAB2E R03 1000 mAh 1x2 шт. | F7: 80 | G7: 8 | H7: 640
A8: Разное | B8: Антенна | D8: Kvant-Efir | E8: Антенна комнатная ARU-01 активная | F8: 230 | G8: 2 | H8: 460
A9: Разное | B9: Антенна | D9: X-Digital | E9: Антенна комнатная DIN 330 | F9: 294 | G9: 1 | H9: 294
A10: Разное | B10: Батарейка | D10: Duracell | E10: Батарейка D/LR20/MN1300 KPN 02*10 | F10: 55 | G10: 4 | H10: 220
A11: Разное | B11: Батарейка | D11: Duracell | E11: Батарейка LR03 MN2400 (коробка) 10х4шт. | F11: 12 | G11: 14 | H11: 168
A12: Разное | B12: Батарейка | D12: Duracell | E12: Батарейка LR03 MN2400 1x2 шт. | F12: 18 | G12: 8 | H12: 144
A13: Разное | B13: Батарейка | D13: Duracell | E13: Батарейка LR03 MN2400 1x18 шт. | F13: 14 | G13: 18 | H13: 252
A14: Разное | B14: Батарейка | D14: Duracell | E14: Батарейка LR06 MN1500 KPD 02*20 Turbo 1x2 шт. | F14: 22 | G14: 8 | H14: 176
A15: Разное | B15: Батарейка | D15: Duracell | E15: Батарейка DURACELL LR06 MN1500 KPD 08*20 Turbo 1x8 шт. | F15: 24 | G15: 8 | H15: 192
A16: Разное | B16: Батарейка | D16: Duracell | E16: Батарейка DURACELL MN21 BLN 01x10 | F16: 60 | G16: 2 | H16: 120
A17: Разное | B17: Батарейка | D17: Duracell | E17: Батарейка DURACELL С/ LR14/ MN1400 KPN 02*10 | F17: 40 | G17: 2 | H17: 80
A18: Разное | B18: Батарейка | D18: Sony | E18: Батарейка LR 03 Stamina Platinum 1x4 шт. | F18: 17 | G18: 8 | H18: 136
A19: Разное | B19: Батарейка | D19: Sony | E19: Батарейка LR 6 Stamina Plus 1х12 шт. | F19: 10 | G19: 12 | H19: 120
A20: Разное | B20: Батарейка | D20: X-Digital | E20: Батарейка X-DIGITAL Longlife R 3 коробка 1X4 шт. | F20: 8 | G20: 12 | H20: 96
A21: Разное | B21: Батарейка | D21: X-Digital | E21: Батарейка X-DIGITAL LR 06 | F21: 8 | G21: 12 | H21: 96
A22: Разное | B22: Зарядное устройство | D22: Sony | E22: Зарядное устройство SONY COMPACT CHARGER + 2XAA2500 MAH | F22: 270 | G22: 1 | H22: 270
A23: Разное | B23: Зарядное устройство | D23: Sony | E23: Зарядное устройство Super Quick Charger with LCD+4xAA 2700mAh | F23: 650 | G23: 1 | H23: 650
A24: Разное | B24: Зарядное устройство | D24: UFO | E24: Зарядное устройство USB PB-miniAPP11-2 5200mAh | F24: 430 | G24: 2 | H24: 860
A25: Разное | B25: Кабель, шнур, сетевой фильтр | D25: Bandridge | E25: Кабель BVL8802 Antenna Cable 2m BLUE | F25: 110 | G25: 2 | H25: 220
A26: Разное | B26: Кабель, шнур, сетевой фильтр | D26: Bandridge | E26: Кабель BANDRIDGE ValueLine VAL3402 Audio | F26: 60 | G26: 2 | H26: 120
A27: Разное | B27: Кабель, шнур, сетевой фильтр | D27: Bandridge | E27: Кабель BANDRIDGE ValueLine VCL7105 Net RJ45 5m | F27: 135 | G27: 2 | H27: 270
A28: Разное | B28: Кабель, шнур, сетевой фильтр | D28: Maxxtro | E28: Сетевой фильтр PWS06K 10F 3м. 6р черный | F28: 120 | G28: 2 | H28: 240
A29: Разное | B29: Кабель, шнур, сетевой фильтр | D29: Maxxtro | E29: Фильтр сетевой Maxxtro 5 розеток, серый, 1,8м. 10А | F29: 50 | G29: 2 | H29: 100
A30: Разное | B30: Настенные крепления | D30: Brateck | E30: Кріплення до LCD 15-27 " LP10-22F | F30: 260 | G30: 1 | H30: 260
A31: Разное | B31: Настенные крепления | D31: ITECH | E31: Крепления LCD-303B | F31: 200 | G31: 1 | H31: 200
A32: Разное | B32: Настенные крепления | D32: ITECH | E32: Крепления LCD-328B | F32: 300 | G32: 1 | H32: 300
A33: Разное | B33: Настенные крепления | D33: ITECH | E33: Крепления PLB-44 | F33: 380 | G33: 1 | H33: 380
A34: Разное | B34: Настенные крепления | D34: X-Digital | E34: Крiплення настiнне X-DIGITAL 13-32" LCD402 чорний | F34: 680 | G34: 1 | H34: 680
A35: Разное | B35: Настенные крепления | D35: X-Digital | E35: Крiплення настiнне X-DIGITAL STEEL 22-42" SF305 Black | F35: 575 | G35: 1 | H35: 575
A36: Телевизор | B36: Телевизр LCD | C36: 19" | D36: Sumsung | E36: LED TV UE19H4000AKXUA | F36: 3999 | G36: 1 | H36: 3999
A37: Телевизор | B37: Телевизр LCD | C37: 22" | D37: Honda | E37: LED TV HD 225 | F37: 3099 | G37: 1 | H37: 3099
A38: Телевизор | B38: Телевизр LCD | C38: 24" | D38: Ergo | E38: LED TV LE24D6 | F38: 3799 | G38: 1 | H38: 3799
A39: Телевизор | B39: Телевизр LCD | C39: 28" | D39: Ergo | E39: LED TV LE28D4 | F39: 4329 | G39: 1 | H39: 4329
A40: Телевизор | B40: Телевизр LCD | C40: 32" | D40: LG | E40: LED TV 32LB563U | F40: 6999 | G40: 1 | H40: 6999
A41: Телевизор | B41: Телевизр LCD | C41: 32" | D41: LG | E41: LED TV 32LF560U | F41: 7499 | G41: 1 | H41: 7499
A42: Телевизор | B42: Телевизр LCD | C42: 32" | D42: Samsung | E42: LED TV UE32FH4003WXUA | F42: 6799 | G42: 1 | H42: 6799
A43: Телевизор | B43: Телевизр LCD | C43: 32" | D43: Samsung | E43: LED TV UE32J5530AUXUA | F43: 10999 | G43: 1 | H43: 10999
A44: Телевизор | B44: Телевизр LCD | C44: 40" | D44: Samsung | E44: LED TV UE40J5100AUXUA | F44: 12499 | G44: 1 | H44: 12499
A45: Телевизор | B45: Телевизр LCD | C45: 42" | D45: LG | E45: LED TV 42LB570V | F45: 10999 | G45: 1 | H45: 10999
A46: Телевизор | B46: Телевизр LCD | C46: 42" | D46: LG | E46: LED TV 42LF580V | F46: 14299 | G46: 1 | H46: 14299
A47: Цифровой эфирный приемник | D47: Romsat | E47: ЦЭП T2050 | F47: 899 | G47: 1 | H47: 899
A48: Цифровой эфирный приемник | D48: Trimax | E48: Цифр. ефірн.приймач DVB-T2 Trimax TR-2012HD | F48: 800 | G48: 2 | H48: 1600
A49: Цифровой эфирный приемник | D49: Strong | E49: ЦЭП DVB-T2 Strong SRT-8501 | F49: 889 | G49: 2 | H49: 1778
H50: 0
H51: 0
H52: 0
H53: 0
H54: 0
H55: 0
H56: 0
H57: 0
H58: 0
H59: 0
H60: 0
H61: 0
H62: 0
H63: 0
H64: 0
H65: 0
H66: =G66*F66 -> 0
H67: 0
H68: 0
H69: 0
H70: 0
H71: 0
H72: 0
H73: 0
H74: 0
H75: 0
H76: 0
H77: 0
H78: 0
H79: 0
H80: 0
H81: 0
H82: 0
H83: 0
H84: 0
H85: 0
H86: 0
H87: 0
H88: 0
H89: 0
H90: 0
H91: 0
H92: 0
H93: 0
H94: 0
H95: 0
H96: 0
H97: 0
H98: 0
H99: 0
H100: 0
H101: 0
H102: 0
H103: 0
H104: 0
H105: 0
H106: 0
H107: 0
H108: 0
H109: 0
H110: 0
H111: 0
H112: 0
H113: 0
H114: 0
H115: 0
H116: 0
H117: 0
H118: 0
H119: 0
H120: 0
H121: 0
H122: 0
H123: 0
H124: 0
H125: 0
H126: 0
H127: 0
H128: 0
H129: 0
H130: =G130*F130 -> 0
H131: 0
H132: 0
H133: 0
H134: 0
H135: 0
H136: 0
H137: 0
H138: 0
H139: 0
H140: 0
H141: 0
H142: 0
H143: 0
H144: 0
H145: 0
H146: 0
H147: 0
H148: 0
H149: 0
H150: 0
H151: 0
H152: 0
H153: 0
H154: 0
H155: 0
H156: 0
H157: 0
H158: 0
H159: 0
H160: 0
H161: 0
H162: 0
H163: 0
H164: 0
H165: 0
H166: 0
H167: 0
H168: 0
H169: 0
H170: 0
H171: 0
H172: 0
H173: 0
H174: 0
H175: 0
H176: 0
H177: 0
H178: 0
H179: 0
H180: 0
H181: 0
H182: 0
H183: 0
H184: 0
H185: 0
H186: 0
H187: 0
H188: 0
H189: 0
H190: 0
H191: 0
H192: 0
H193: 0
H194: =G194*F194 -> 0
H195: 0
H196: 0
H197: 0
H198: 0
H199: 0
H200: 0
... 267 more rows
